Cogmind - Beta 15 @@@ ROGUE MODE // 2025.10.15 @ 22:50:42 Player: Hidden Result: Destroyed by B-75 Beast with Heavy Plasma Cannon Performance ------------- Evolutions (5) 2500 Regions Visited (5) 1000 Robots Destroyed (28) 140 Value Destroyed (1077) 1077 Prototype IDs (3) 60 Alien Tech Used (0) 0 Bonus (0) 0 TOTAL SCORE: 4777 Bonus ------- None Cogmind --------- Core Integrity 0/1000 Matter 102/300 Energy 95/100 System Corruption 19% Temperature Cool (12) Movement Core (50) Location -5/Factory Parts ------- > --- POWER (3) -------- (None) > --- PROPULSION (5) --- (None) > --- UTILITY (5) ------ (None) > --- WEAPON (4) ------- (None) > --- INVENTORY (5) ---- Subdweller Monowheel Recoil Stabilizer Recoil Stabilizer Recoil Stabilizer Thermic Laser Peak State ------------ > --- POWER ------------ Micro Nuclear Core > --- PROPULSION ------- Light Treads Spiked Treads Improved Carbon-fiber Leg Armored Leg > --- UTILITY ---------- Small Storage Unit Advanced Weight Redist. System ECM Suite Improved Medium Armor Plating Improved Shield Generator > --- WEAPON ----------- Plasma Rifle Plasma Rifle Minigun Gauss Rifle > --- INVENTORY -------- Subdweller Monowheel Advanced Heat Sink Advanced Heat Sink [Rating: 47] Favorites ----------- Power Light Ion Engine Engine Light Ion Engine Power Core Micro Nuclear Core Propulsion Light Treads Treads Light Treads Leg Aluminum Leg Wheel Subdweller Monowheel Flight Unit Xenon Bombardment Thruster Utility ECM Suite Device ECM Suite Storage Small Storage Unit Protection Improved Medium Armor Plating Weapon Battle Rifle Energy Gun Medium Laser Ballistic Gun Battle Rifle Ballistic Cannon Battle Cannon Special Weapon Improved Remote Datajack Build | -11 -10 -10 -10 -7 -5 ------- Run | Yrd Mat Min Sub Rec Fac Slots Evolved 10 | . . . . . 10 Power 2 | . . . . . 2 Propulsion 3 | . . . . . 3 Utility 3 | . . . . . 3 Weapon 2 | . . . . . 2 Parts Attached 48 | 5 2 5 8 6 22 Power 6 | . 1 1 . 1 3 Engine 5 | . 1 1 . 1 2 Core 1 | . . . . . 1 Reactor . | . . . . . . Propulsion 14 | 2 . 2 4 2 4 Treads 4 | 2 . . 1 1 . Leg 5 | . . 2 . . 3 Wheel 3 | . . . 3 . . Hover . | . . . . . . Flight 2 | . . . . 1 1 Utility 12 | 1 1 1 . 3 6 Device 10 | . 1 1 . 3 5 Storage 1 | 1 . . . . . Processor . | . . . . . . Hackware . | . . . . . . Protection 1 | . . . . . 1 Artifact . | . . . . . . Weapon 16 | 2 . 1 4 . 9 Energy Gun 9 | 1 . 1 1 . 6 Energy Cannon . | . . . . . . Ballistic Gun 5 | 1 . . 2 . 2 Ballistic Cannon 1 | . . . 1 . . Launcher . | . . . . . . Special Weapon 1 | . . . . . 1 Impact Weapon . | . . . . . . Slashing Weapon . | . . . . . . Piercing Weapon . | . . . . . . Special Melee Weapon . | . . . . . . Unidentified Prototypes 1 | . . 1 . . . Parts Lost 30 | . . 1 1 2 26 Power 5 | . . . . 1 4 Propulsion 7 | . . . 1 . 6 Utility 8 | . . . . 1 7 Weapon 10 | . . 1 . . 9 Highest Loss Streak 11 | . . 1 1 1 11 To Critical Strikes . | . . . . . . Average Backups 3 | . 1 2 4 4 3 Power . | . 1 1 1 . . Propulsion . | . . . . 1 1 Utility . | . . . 1 1 1 Weapon 1 | . . . 1 2 1 Tool/Special . | . . . . . . Unused Backups 5 | . . . 1 2 2 Power 1 | . . . 1 . . Propulsion . | . . . . . . Utility 2 | . . . . . 2 Weapon 2 | . . . . 2 . Tool/Special . | . . . . . . Average Slot Usage (%) 78 | . 84 98 97 76 59 Engine 8 | . 1 14 14 11 3 Treads 11 | . 28 3 1 16 7 Leg 5 | . . 23 9 . 4 Wheel 3 | . . . 15 . . Device 18 | . 11 21 28 19 15 Storage 4 | . 14 6 . . 4 Energy Gun 6 | . 14 26 8 . 2 Ballistic Gun 11 | . 14 1 10 14 10 Ballistic Cannon 6 | . . . 8 14 2 Peak Build Rating 47 | 5 7 14 17 19 47 Average Rating 16 | 3 5 11 15 11 31 On Entrance 9 | . 5 7 14 15 16 Naked Turns 17 | . . . . . 17 Heaviest Build 42 | 9 13 16 18 20 42 Greatest Support 49 | 40 40 40 40 40 49 Greatest Overweight (x) 4 | . . . 1 4 2 Average Overweight (x) . | . . . . . . Largest Inventory Capacity 8 | 8 8 8 5 5 8 Average Capacity 6 | 6 8 6 5 5 7 Most Carried 7 | 1 4 6 5 5 7 Average Carried 3 | . 1 2 4 4 3 Final Capacity 8 | 8 8 5 5 5 5 Final Carried 5 | 1 4 3 5 4 5 Class Distribution -------------------- 78% | Mutant 17% | Gunner 3% | Tank Dominant Class ---------------- Mutant | -10/Materials Mutant | -10/Mines Mutant | -10/Subcaves Mutant | -7/Recycling Gunner | -5/Factory Resources | -11 -10 -10 -10 -7 -5 ----------- Run | Yrd Mat Min Sub Rec Fac Matter Collected 927 | 172 151 . 255 184 165 Remotely . | . . . . . . Salvage Created 1081 | . 368 89 244 85 295 Parts 55 | . 26 2 13 2 12 Haulers Intercepted . | . . . . . . Recyclers Shooed 1 | . . . . . 1 Parts Field Recycled . | . . . . . . Retrieved Matter . | . . . . . . Parts Self-Destructed 16 | . . . 16 . . Prevented . | . . . . . . Kills | -11 -10 -10 -10 -7 -5 ------- Run | Yrd Mat Min Sub Rec Fac Combat Hostiles Destroyed 24 | . 9 2 5 3 5 Guns 19 | . 9 2 4 . 4 Cannons 4 | . . . 1 3 . AOE 1 | . . . . . 1 Classes Destroyed 10 | . 4 . 3 1 2 Worker 2 | . 1 . . . 1 Builder 1 | . 1 . . . . Turret 1 | . . . 1 . . Swarmer 3 | . 3 . . . . Grunt 9 | . 6 2 . 1 . Sentry 3 | . . . 1 1 1 Demolisher 1 | . . . . 1 . Hunter 1 | . . . . . 1 Programmer 3 | . . . . . 3 Subdweller 4 | . . . 4 . . Best Kill Streak 5 | . 5 2 3 2 2 Combat Bots Only 3 | . 3 2 3 2 2 Max Kills in Single Turn 2 | . 2 1 1 1 1 Gunslinging . | . . . . . . Exploded 1 | . . . . . 1 Melee . | . . . . . . Uniques/NPCs Destroyed . | . . . . . . Combat | -11 -10 -10 -10 -7 -5 -------- Run | Yrd Mat Min Sub Rec Fac Hostile Shots Fired 371 | . 54 11 56 40 210 Missed 122 | . 17 2 27 15 61 Hits 249 | . 37 9 29 25 149 Projectile 249 | . 37 9 29 25 149 AOE 3 | . . . . 1 2 Critical Strikes 18 | . 1 1 2 . 14 Damage Taken 4723 | . 411 121 473 290 3428 Core 1244 | . 71 14 114 43 1002 Absorbed by Shields 27 | . . . . . 27 Core Remaining (%) 51 | 100 . . . 3 . Volleys Fired 118 | . 32 6 20 20 40 Largest 4 | . 2 2 2 1 4 Hottest 330 | . 70 70 115 33 330 Shots Fired 216 | . 64 11 39 20 82 Gun 176 | . 64 11 32 . 69 Cannon 31 | . . . 7 20 4 Launcher . | . . . . . . Special 9 | . . . . . 9 Kinetic 128 | . 32 5 23 20 48 Thermal 79 | . 32 6 16 . 25 Explosive . | . . . . . . Electromagnetic . | . . . . . . Robot Hit Streak 12 | . 9 6 11 4 12 Robot Miss Streak 7 | . 2 1 7 4 4 Penetration Max 1 | . . . . . 1 Secondary Targets 4 | . 2 . 2 . . Max Gunslinging Chain 1 | . 1 . 1 . . Shots Hit Robots 149 | . 42 10 27 12 58 Core Hits 57 | . 18 5 11 5 18 Critical Kills 2 | . . . . . 2 Critical Parts Destroyed . | . . . . . . Critical Strikes 9 | . 2 2 . 1 4 Burn 6 | . 2 2 . . 2 Destroy 2 | . . . . . 2 Blast 1 | . . . . 1 . Melee Attacks . | . . . . . . Impact . | . . . . . . Slashing . | . . . . . . Piercing . | . . . . . . Sneak Attacks . | . . . . . . Combat Hostiles . | . . . . . . Follow-up Attacks . | . . . . . . Damage Inflicted 2502 | . 553 131 521 320 977 Guns 2023 | . 553 131 450 . 889 Cannons 396 | . . . 71 307 18 Explosions . | . . . . . . Melee . | . . . . . . Ramming 83 | . . . . 13 70 Kinetic 1520 | . 280 66 314 307 553 Thermal 899 | . 273 65 207 . 354 Explosive . | . . . . . . Electromagnetic . | . . . . . . Impact . | . . . . . . Slashing . | . . . . . . Piercing . | . . . . . . Highest Corruption 19 | . . . . . 19 Average Corruption 7 | . . . . . 7 Corruption Purged . | . . . . . . Corruption Blocked . | . . . . . . Effects 10 | . . . . . 10 Matter Fused 4 | . . . . . 4 Heat Flow Errors 1 | . . . . . 1 Energy Discharges 2 | . . . . . 2 Data Loss (minor) 2 | . . . . . 2 Alerts 1 | . . . . . 1 Overload Shots . | . . . . . . Overflow Damage 14 | . . . . 14 . Projectiles 14 | . . . . 14 . Explosions . | . . . . . . Melee . | . . . . . . Knockbacks 7 | . . . . 7 . Impact . | . . . . . . Kinetic 6 | . . . . 6 . Secondary 1 | . . . . 1 . Self-Inflicted Damage 11 | . . . . . 11 Shots . | . . . . . . Rammed 9 | . . . . 2 7 Targets Rammed 18 | . . . . 2 16 Kicked 9 | . . . . . 9 Crushed . | . . . . . . Highest Temperature 491 | . 33 130 240 8 491 Average Temperature 83 | . 10 61 96 4 136 Received Heat Transfer 1038 | . 201 90 408 120 219 Effects 2 | . . . . . 2 Shutdowns 1 | . . . . . 1 Matter Decay 1 | . . . . . 1 Siege Activations . | . . . . . . Martial Activations . | . . . . . . Shielding Activations . | . . . . . . Robots Disrupted . | . . . . . . Combat Hostiles . | . . . . . . Robots Corrupted . | . . . . . . Combat Hostiles . | . . . . . . Parts Fried . | . . . . . . Impact Corruptions . | . . . . . . Robots Melted . | . . . . . . Combat Hostiles . | . . . . . . Parts Melted 2 | . 1 . . . 1 Heat Transferred 2627 | . 962 333 384 . 948 Parts Sabotaged . | . . . . . . Parts Stolen . | . . . . . . Parts Stripped . | . . . . . . Power Chain Reactions . | . . . . . . Alert | -11 -10 -10 -10 -7 -5 ------- Run | Yrd Mat Min Sub Rec Fac Maximum Alert Level . | . . . . . . Low Security (%) 100 | 100 100 100 . 100 100 Level 1 . | . . . . . . Level 2 . | . . . . . . Level 3 . | . . . . . . Level 4 . | . . . . . . Level 5 . | . . . . . . High Security . | . . . . . . Max Security . | . . . . . . Peak Influence 161 | . 161 94 . 24 50 Initial 54 | . . 54 . 24 50 Average 17 | . 55 40 . 2 7 Influence Increases 705 | . 261 50 130 67 197 Destroy 0b10 Robot/C 420 | . 180 40 40 60 100 Destroy 0b10 Robot/NC 15 | . 10 . . . 5 Destroy Leader 90 | . 40 10 . . 40 Successful Hack 5 | . . . . 5 . Destroy Structure 5 | . 1 . . 2 2 Advance Influence 50 | . . . . . 50 Lose Combat Pursuer 120 | . 30 . 90 . . Influence Decreases 675 | . 120 191 78 119 167 Entered New Map 115 | . . 87 . 28 . Time Decay 484 | . 120 94 78 81 111 Lost Part 76 | . . 10 . 10 56 Squads Dispatched 3 | . 1 . . . 2 Investigation . | . . . . . . Extermination 2 | . . . . . 2 Reinforcement 1 | . 1 . . . . Assault . | . . . . . . Garrison . | . . . . . . Intercept . | . . . . . . Searches Triggered . | . . . . . . Construction Impeded . | . . . . . . Haulers Reinforced . | . . . . . . Active Scanning Responses . | . . . . . . Cargo Convoy Interrupts . | . . . . . . Stealth | -11 -10 -10 -10 -7 -5 --------- Run | Yrd Mat Min Sub Rec Fac Distress Signals 3 | . 2 . . . 1 Communications Jammed . | . . . . . . Distress Signals . | . . . . . . Times Spotted 62 | . 18 2 21 3 18 Peak Tracking Total 8 | . 6 2 8 2 4 Tactical Retreats 6 | . 2 . 3 . 1 Traps | -11 -10 -10 -10 -7 -5 ------- Run | Yrd Mat Min Sub Rec Fac Traps Triggered 1 | . . . . . 1 Indirectly . | . . . . . . Trap Hack Attempts . | . . . . . . Triggered . | . . . . . . Disarmed . | . . . . . . Reprogrammed . | . . . . . . Reused . | . . . . . . Traps Extracted . | . . . . . . Installed . | . . . . . . Triggered . | . . . . . . Machines | -11 -10 -10 -10 -7 -5 ---------- Run | Yrd Mat Min Sub Rec Fac Machines Disabled 2 | . . . 2 . . Max in Single Turn 1 | . . . 1 . . Machines Repaired . | . . . . . . Machines Dismantled . | . . . . . . Machines Sabotaged . | . . . . . . Overloaded Fab Kills . | . . . . . . Hacking | -11 -10 -10 -10 -7 -5 --------- Run | Yrd Mat Min Sub Rec Fac Machines Accessed 4 | . 1 2 . 1 . Terminals 3 | . 1 1 . 1 . Fabricators . | . . . . . . Repair Stations . | . . . . . . Recycling Units . | . . . . . . Scanalyzers . | . . . . . . Garrison Access . | . . . . . . Total Hacks 12 | . 1 6 . 5 . Successful 4 | . . 1 . 3 . Failed 8 | . 1 5 . 2 . Catastrophic 1 | . . . . 1 . Database Lockouts . | . . . . . . Manual 3 | . 3 . . . . Terminals 11 | . 1 5 . 5 . Fabricators . | . . . . . . Repair Stations . | . . . . . . Recycling Units . | . . . . . . Scanalyzers . | . . . . . . Garrison Access . | . . . . . . Terminal Hacks 4 | . . 1 . 3 . Record 1 | . . . . 1 . Robot Schematic 1 | . . . . 1 . Prototype ID Bank 1 | . . . . 1 . Open Door 1 | . . 1 . . . Fabricator Hacks . | . . . . . . Repair Station Hacks . | . . . . . . Recycling Unit Hacks . | . . . . . . Scanalyzer . | . . . . . . Garrison Access Hacks . | . . . . . . Unauthorized Hacks . | . . . . . . Terminals . | . . . . . . Fabricators . | . . . . . . Repair Stations . | . . . . . . Recycling Units . | . . . . . . Scanalyzers . | . . . . . . Garrison Access . | . . . . . . Data Cores Recovered . | . . . . . . Used . | . . . . . . Hacking Detections 3 | . 1 1 . 1 . Full Trace Events 1 | . . . . 1 . Feedback Events . | . . . . . . Feedback Blocked . | . . . . . . Robot Schematics Acquired 1 | . . . . 1 . Robots Built . | . . . . . . Authchips . | . . . . . . Time . | . . . . . . Total Robot Build Rating . | . . . . . . Part Schematics Acquired . | . . . . . . Parts Built . | . . . . . . Authchips . | . . . . . . Time . | . . . . . . Total Part Build Rating . | . . . . . . Parts Repaired . | . . . . . . Time . | . . . . . . Parts Recycled . | . . . . . . Recycled Matter . | . . . . . . Retrieved Matter . | . . . . . . Retrieved Components . | . . . . . . Parts Scanalyzed . | . . . . . . Part Schematics Acquired . | . . . . . . Parts Damaged . | . . . . . . Bothacking | -11 -10 -10 -10 -7 -5 ------------ Run | Yrd Mat Min Sub Rec Fac Used RIF Installer . | . . . . . . Robots Hacked 1 | . . . . . 1 Non-combat . | . . . . . . Combat 1 | . . . . . 1 Robot Hacks Applied 1 | . . . . . 1 parse_system 1 | . . . . . 1 Relay Couplers Released . | . . . . . . Fabnet Peak Effective % . | . . . . . . Robots Rewired . | . . . . . . Allies Hacked . | . . . . . . Hacks Repelled . | . . . . . . Allies | -11 -10 -10 -10 -7 -5 -------- Run | Yrd Mat Min Sub Rec Fac Total Allies . | . . . . . . Largest Group . | . . . . . . Highest-Rated Group . | . . . . . . Highest-Rated Ally . | . . . . . . Total Orders . | . . . . . . Ally Attacks 8 | . . . 8 . . Total Damage 35 | . . . 35 . . Kills . | . . . . . . Allies Corrupted . | . . . . . . Allies Melted . | . . . . . . Intel | -11 -10 -10 -10 -7 -5 ------- Run | Yrd Mat Min Sub Rec Fac Active Infowar (turns) 2408 | . 334 231 505 700 638 Structural 1116 | . 334 231 505 46 . ECM 1292 | . . . . 654 638 Robot Analysis Total . | . . . . . . Derelict Logs Recovered 2 | . . 2 . . . Drone Launches 4 | . . . 4 . . Drone Recoveries 3 | . . . 3 . . Exploration | -11 -10 -10 -10 -7 -5 ------------- Run | Yrd Mat Min Sub Rec Fac Turns Passed 2702 | 62 389 231 505 729 786 Spaces Moved 1456 | 37 173 169 351 352 374 Core 27 | 4 . . . 3 20 Treads 715 | 33 173 3 14 334 158 Legs 447 | . . 166 85 . 196 Wheels 267 | . . . 252 15 . Hover . | . . . . . . Flight . | . . . . . . Fastest Speed 50 | 50 160 120 110 110 50 Average Speed 138 | 148 160 120 116 158 135 Slowest Speed 270 | 160 160 160 190 250 270 Overloaded Moves . | . . . . . . Propulsion Burnouts . | . . . . . . Robots Hopped . | . . . . . . Potential Cave-ins . | . . . . . . Cave-ins Triggered . | . . . . . . Exploration Rate (%) 27 | 4 31 36 28 56 11 Regions Visited 5 Branch Regions 3 Pre-discovered Areas 1 | . . 1 . . . Known Exits Taken . | . . . . . . Unknown Exits Taken 5 | 1 1 1 1 1 . Scrap Searched . | . . . . . . Spaces Dug . | . . . . . . Terrain Destroyed 3 | . . . . 2 1 Melee . | . . . . . . Projectile 3 | . . . . 2 1 AOE . | . . . . . . Terrain Rammed . | . . . . . . Walls Destroyed . | . . . . . . Machines Disabled . | . . . . . . Actions | -11 -10 -10 -10 -7 -5 --------- Run | Yrd Mat Min Sub Rec Fac Total 1950 | 42 220 187 409 503 589 Wait 258 | . 11 . 17 109 121 Move 1451 | 36 172 168 350 351 374 Hop . | . . . . . . Pick Up 22 | 1 3 1 4 2 11 Fast Attach 32 | 5 2 2 6 6 11 Attach 17 | . . 2 . 2 13 Detach 7 | . . 3 . 1 3 Swap 6 | . . 1 3 2 . Drop 20 | . . 4 9 7 . Fire 118 | . 32 6 20 20 40 Melee . | . . . . . . Ram 7 | . . . . . 7 Kick 9 | . . . . . 9 Crush 2 | . . . . 2 . Escape Stasis . | . . . . . . Rewire 1 | . . . . 1 . Trap . | . . . . . . Miscellaneous . | . . . . . . Route ------- -11/Scrapyard -10/Materials -10/Mines -10/Subcaves -7/Recycling -5/Factory History --------- Turn | Location | Event 8 | -11/Scrapyard | Discovered new exit (range 15) 63 | -11/Scrapyard | Entered Materials 282 | -10/Materials | Discovered new exit (range 7) 310 | -10/Materials | Build established: Mutant 452 | -10/Materials | Entered Mines 526 | -10/Mines | Met a Derelict bent on vengeance 545 | -10/Mines | Found the Drone Emporium 552 | -10/Mines | Found Prototype Device 553 | -10/Mines | Identified Thief Drone Bay 556 | -10/Mines | Learned Materials terminal intel 582 | -10/Mines | Learned location of Zion (-7) 648 | -10/Mines | Discovered new exit (range 8) 683 | -10/Mines | Entered Subcaves 684 | -10/Subcaves | Approached by a straggling Scientist 800 | -10/Subcaves | Ambushed by swarm of Subdwellers 800 | -10/Subcaves | Ambushed by Subdwellers from Twisted Machinery 800 | -10/Subcaves | Ambushed by Subdwellers from Twisted Machinery 803 | -10/Subcaves | Ambushed by Subdwellers from Twisted Machinery 824 | -10/Subcaves | Core integrity fell below 50% 959 | -10/Subcaves | Shifting Twisted Machinery released Sub. Monowheel 961 | -10/Subcaves | Shifting Twisted Machinery released Flamer 1082 | -10/Subcaves | Discovered new exit (range 8) 1188 | -10/Subcaves | Entered Recycling 1189 | -7/Recycling | Met a Zionite searching for Scraptown 1435 | -7/Recycling | Core integrity fell below 20% 1736 | -7/Recycling | Discovered new exit (range 6) 1917 | -7/Recycling | Entered Factory 1917 | -5/Factory | Evolved 10 slots: Power x2, Propulsion x3, Utility x3, Weapon x2 2227 | -5/Factory | Build established: Gunner 2395 | -5/Factory | Lost 4 parts (1p1u2w) 2502 | -5/Factory | Lost 6 parts (2n1u3w) 2608 | -5/Factory | System corruption reached 10% 2640 | -5/Factory | Lost 11 parts (2p2n5u2w) 2686 | -5/Factory | Core integrity fell below 50% 2686 | -5/Factory | Released all parts (2) 2698 | -5/Factory | Spotted B-75 Beast 2699 | -5/Factory | Core integrity fell below 20% 2703 | -5/Factory | Destroyed by B-75 Beast with Heavy Plasma Cannon Last Messages --------------- 02686_ Variable Charge Gun destroyed. 02686_ Released Sml. Storage Unit. 02686_ Released Thermic Laser. 02688_ P-70 Sage resets P-70 Sage, system corruption cleaned. 02692_ Slammed into P-70 Sage. 02694_ M-28 Smith repairs P-70 Sage Imp. Heat Sink. 02694_ Slammed into P-70 Sage. 02698_ K-01 Serf cleans the Fusion Modulator. 02698_ Fusion Modulator explodes. 02698_ P-70 Sage destroyed. 02698_ U-05 Engineer destroyed. 02698_ P-70 Sage destroyed. 02698_ K-01 Serf destroyed. 02698_ W-25 Informer destroyed. 02698_ M-28 Smith destroyed. 02698_ K-01 Serf collects debris. 02701_ System corrupted: Matter fused (-8). 02701_ K-01 Serf collects debris. Map ----- +----------------------------------------------------+ | ?????????????????????????????????????????????????? | | ?????????????????????????????????????????????????? | | ?????????????????????????????????????????????????? | | ?????????????????????????????????????????????????? | | ?????????????????????????????????????????????????? | | ?????????????????????????????????????????????????? | | ?????????????????????????????????????????????????? | | ?????????????????????????????????????????????????? | | ?????????????????????????????????????????????????? | | ?????????????????????????????????????????????????? | | ????????????????????????? ???????????????????????? | | ????????????????????????" ??? ???????????????????? | | ?????????????????????? ??? ???????????????????? | | ???????????????????? ??? ???????????????????? | | ??????????????????? !!] "?" "??????????????????? | | ???????????????????# !!] "?" "?? ???????????????? | | ???????????????????? !! ? ? ??????????????? | | ???????????????????# "?" """ "??????????????? | | ???????????????????# """ """ """????????????? | | ???????????????????# """ """ """? #?????????? | | ???????????????????# #?????????? | | ???????????????????# """ """ """ """ #?????????? | | ???????????????????# """ """ """ """ #?????????? | | ???????????????????#k """ """ """ """ #?????????? | | ???????????????????# u #?????????? | | ???????????????????# @ #?????????? | | ???????????????????+ k +?????????? | | ???????????????????# k #?????????? | | ???????????????????# BB RR #?????????? | | ???????????????????# ##BB;;;;;=;;;##?????????? | | ???????????????????# ?# ;; %!%k* #?????????? | | ?????????????????? ?###;;%!=|%= #?????????? | | ???????????????? ???# ;[! |% #?????????? | | ???????????????? ???# ;* ! =%t ########### | | ??????????????? ???# ; *% # | | ?????????????? ???# " # | | ?????????????? #### ##???### # | | ???????????????? ???# ???????# ![# | | ?????????????????????# ???????# " %+ | | ?????????????????????#????????############+####### | | ????????????????????????????????????????? ?????? | | ????????????????????????????????????????""" ?????? | | ??????????????????????????????????????? """ "????? | | ?????????????????????????????????????? """ "????? | | ????????????????????????????????????? ???? | | ????????????????????????????????????? """ ""???? | | ????????????????????????????????????# ???"" """??? | | ????????????????????????????????????#?????? ""???? | | ??????????????????????????????????????????? ????? | | ??????????????????????????????????????????? ????? | +----------------------------------------------------+ Best States ------------- Heat Dissipation 78 Energy Generation 41 Energy Capacity 400 Matter Stores 300 Matter Capacity 300 Sight Range 16 Terrain Scan Density 10 ECM Strength 1 Additional Mass Support 9 Armor Coverage 225 Evasion (%) 57 Recoil Reduction 4 Particle Charging 15 Kinecelleration 30 Item Schematics ----------------- None Robot Schematics ------------------ T-07 Excavator | -7/Recycling | Hacked Fabricated ------------ Nothing Repaired ---------- Nothing Alien Tech Used ----------------- None Achievements -------------- Close Call Crack Shot Made in Tau Ceti IV Please Form A Line System Compromised Tourist Challenges ------------ None Game ------ Seed ShockDecoderWings Manual? 0 Play Time 00:44:34 Cumulative 1.9 hours Start 2025.10.11 @ 16:05:14 End 2025.10.15 @ 22:50:42 Sessions 3 Manual Loads 0 Difficulty Rogue Special Mode None Game No. 4 Rogue 4 Adventurer 0 Explorer 0 Win Type - Total 0 Types 0/0/0/0/0/0/0/0/0/0 Lore% 0 Gallery% 6 Achievement% 6 Wizard Run 0 Options --------- Layout 1 ASCII 0 Keyboard 0 Movement Mouse Keybinds 0 Fullscreen 1 Font 24/X11 Map View 50x35 Zoom Use 0% Tactical HUD 1 Map Filters NONE Filters NONE Steam 1 RUN: db021d56-f35a-41d8-9149-83b328a913a6